[Event "95th Caplin Hastings Congress"]
[Site "Hastings"]
[Date "2019.12.30"]
[Round "3.44"]
[White "De Coverly, Roger D"]
[Black "Merriman, James"]
[Result "1-0"]
[ECO "A04"]
[WhiteElo "1986"]
[BlackElo "1895"]
[Annotator "NA"]
[PlyCount "201"]
[EventDate "2019.12.28"]
[EventType "swiss"]
[EventCountry "ENG"]
[SourceTitle "playchess.com"]
[Source "ChessBase"]
[SourceQuality "1"]
[TimeControl "40/6600+30:3000+30"]

1. Nf3 {[%emt 0:09:36]} Nf6 {[%emt 0:09:39]} 2. g3 {[%emt 0:00:15]} c5 {[%emt 0:00:09]} 3. Bg2 {[%emt 0:00:17]} Nc6 {[%emt 0:00:15]} 4. d4 {[%emt 0:01:27]} cxd4 {[%emt 0:03:14]} 5. Nxd4 {[%emt 0:00:10]} Nxd4 {[%emt 0:01:15]} 6. Qxd4 {[%emt 0:00:06]} g6 {[%emt 0:00:18]} 7. Nc3 {[%emt 0:02:51]} Bg7 {[%emt 0:00:35]} 8. Be3 {[%emt 0:04:08]} O-O {[%emt 0:02:20]} 9. h3 {[%emt 0:07:24]} d6 {[%emt 0:01:18]} 10. Qd2 {[%emt 0:02:16]} Re8 {[%emt 0:05:57]} 11. O-O {[%emt 0:04:51]} Bd7 {[%emt 0:04:27]} 12. Bxb7 {[%emt 0:08:24]} Bxh3 {[%emt 0:00:20]} 13. Bg2 {[%emt 0:03:57]} Bxg2 {[%emt 0:05:49]} 14. Kxg2 {[%emt 0:00:07]} Qd7 {[%emt 0:01:27]} 15. f3 {[%emt 0:03:05]} Rab8 {[%emt 0:01:15]} 16. Rab1 {[%emt 0:02:54]} d5 {[%emt 0:02:17]} 17. Rfd1 {[%emt 0:02:07]} Red8 {[%emt 0:01:15]} 18. Bd4 {[%emt 0:15:10]} e6 {[%emt 0:03:40]} 19. Qe3 {[%emt 0:12:59]} Rb7 {[%emt 0:03:44]} 20. b3 {[%emt 0:08:49]} Qc7 {[%emt 0:06:37]} 21. Be5 {[%emt 0:06:06]} Ng4 {[%emt 0:00:46]} 22. fxg4 {[%emt 0:02:16]} Qxe5 {[%emt 0:00:42]} 23. Qxe5 {[%emt 0:01:56]} Bxe5 {[%emt 0:00:11]} 24. Na4 {[%emt 0:01:38]} Rc8 {[%emt 0:03:31]} 25. Rd2 {[%emt 0:03:38]} Rbc7 {[%emt 0:00:44]} 26. c3 {[%emt 0:04:03]} Bxc3 {[%emt 0:00:12]} 27. Nxc3 {[%emt 0:00:08]} Rxc3 {[%emt 0:00:04]} 28. Rbd1 {[%emt 0:00:38]} Kg7 {[%emt 0:02:46]} 29. Rd4 {[%emt 0:00:26]} Rc2 {[%emt 0:00:27]} 30. R1d2 {[%emt 0:00:10]} Kf6 {[%emt 0:01:23]} 31. Kf2 {[%emt 0:00:27]} Rxd2 {[%emt 0:03:31]} 32. Rxd2 {[%emt 0:00:06]} Ke5 {[%emt 0:01:05]} 33. e3 {[%emt 0:01:46]} Rc1 {[%emt 0:01:08]} 34. Kf3 {[%emt 0:00:54]} f5 {[%emt 0:02:21]} 35. g5 {[%emt 0:01:17]} Kd6 {[%emt 0:00:19]} 36. Rh2 {[%emt 0:00:30]} Rc7 {[%emt 0:00:06]} 37. Rh4 {[%emt 0:00:36]} e5 {[%emt 0:00:20]} 38. Ra4 {[%emt 0:00:30]} e4+ {[%emt 0:00:10]} 39. Kf4 {[%emt 0:00:55]} Ke6 {[%emt 0:00:48]} 40. Ra6+ {[%emt 0:00:49]} Ke7 {[%emt 0:01:37]} 41. Ke5 {[%emt 0:53:02]} Rd7 {[%emt 0:50:29]} 42. Kd4 {[%emt 0:00:56]} Kf7 {[%emt 0:01:15]} 43. b4 {[%emt 0:01:39]} Ke7 {[%emt 0:01:05]} 44. a4 {[%emt 0:01:19]} Kf7 {[%emt 0:01:15]} 45. b5 {[%emt 0:00:58]} Ke7 {[%emt 0:00:19]} 46. Rc6 {[%emt 0:02:37]} Kf7 {[%emt 0:00:48]} 47. a5 {[%emt 0:01:22]} Ke7 {[%emt 0:02:31]} 48. b6 {[%emt 0:01:47]} axb6 {[%emt 0:00:14]} 49. axb6 {[%emt 0:00:28]} Rd8 {[%emt 0:03:13]} 50. Rc7+ {[%emt 0:00:00]} Kd6 {[%emt 0:00:00]} 51. Rf7 {[%emt 0:00:00]} Kc6 {[%emt 0:00:00]} 52. b7 {[%emt 0:00:00]} Rh8 {[%emt 0:00:00]} 53. Rxh7 {[%emt 0:00:00]} Rb8 {[%emt 0:00:00]} 54. Rg7 {[%emt 0:00:00]} Rd8 {[%emt 0:00:00]} 55. Rxg6+ {[%emt 0:00:00]} Kxb7 {[%emt 0:00:00]} 56. Rf6 {[%emt 0:00:00]} Kc7 {[%emt 0:00:00]} 57. Rxf5 {[%emt 0:00:00]} Kc6 {[%emt 0:00:00]} 58. Rf6+ {[%emt 0:00:00]} Kd7 {[%emt 0:00:00]} 59. Kxd5 {[%emt 0:00:00]} Ke7+ {[%emt 0:00:00]} 60. Kxe4 {[%emt 0:00:00]} Ra8 {[%emt 0:00:00]} 61. Kf4 {[%emt 0:00:00]} Ra4+ {[%emt 0:00:00]} 62. e4 {[%emt 0:00:00]} Ra1 {[%emt 0:00:00]} 63. Kf5 {[%emt 0:00:00]} Rf1+ {[%emt 0:00:00]} 64. Ke5 {[%emt 0:00:00]} Ra1 {[%emt 0:00:00]} 65. Rb6 {[%emt 0:00:00]} Kf7 {[%emt 0:00:00]} 66. g6+ {[%emt 0:00:00]} Kg7 {[%emt 0:00:00]} 67. Kf5 {[%emt 0:00:00]} Ra5+ {[%emt 0:00:00]} 68. e5 {[%emt 0:00:00]} Ra7 {[%emt 0:00:00]} 69. Rf6 {[%emt 0:00:00]} Ra3 {[%emt 0:00:00]} 70. Rf7+ {[%emt 0:00:00]} Kg8 {[%emt 0:00:00]} 71. g4 {[%emt 0:00:00]} Rf3+ {[%emt 0:00:00]} 72. Ke6 {[%emt 0:00:00]} Rg3 {[%emt 0:00:00]} 73. Rf4 {[%emt 0:00:00]} Kg7 {[%emt 0:00:00]} 74. Kf5 {[%emt 0:00:00]} Ra3 {[%emt 0:00:00]} 75. Kg5 {[%emt 0:00:00]} Re3 {[%emt 0:00:00]} 76. Rf7+ {[%emt 0:00:00]} Kg8 {[%emt 0:00:00]} 77. Kf6 {[%emt 0:00:00]} Rf3+ {[%emt 0:00:00]} 78. Ke6 {[%emt 0:00:00]} Rg3 {[%emt 0:00:00]} 79. Kf5 {[%emt 0:00:00]} Rf3+ {[%emt 0:00:00]} 80. Kg5 {[%emt 0:00:00]} Re3 {[%emt 0:00:00]} 81. Re7 {[%emt 0:00:00]} Ra3 {[%emt 0:00:00]} 82. e6 {[%emt 0:00:00]} Re3 {[%emt 0:00:00]} 83. Kf6 {[%emt 0:00:00]} Rf3+ {[%emt 0:00:00]} 84. Ke5 {[%emt 0:00:00]} Re3+ {[%emt 0:00:00]} 85. Kf4 {[%emt 0:00:00]} Re1 {[%emt 0:00:00]} 86. g5 {[%emt 0:00:00]} Rf1+ {[%emt 0:00:00]} 87. Ke5 {[%emt 0:00:00]} Re1+ {[%emt 0:00:00]} 88. Kd6 {[%emt 0:00:00]} Rd1+ {[%emt 0:00:00]} 89. Kc7 {[%emt 0:00:00]} Re1 {[%emt 0:00:00]} 90. Kd8 {[%emt 0:00:00]} Re5 {[%emt 0:00:00]} 91. g7 {[%emt 0:00:00]} Re1 {[%emt 0:00:00]} 92. Kd7 {[%emt 0:00:07]} Rd1+ {[%emt 0:00:00]} 93. Ke8 {[%emt 0:00:16]} Re1 {[%emt 0:00:00]} 94. Kd7 {[%emt 0:00:29]} Rd1+ {[%emt 0:00:00]} 95. Kc6 {[%emt 0:00:16]} Re1 {[%emt 0:00:00]} 96. Kd6 {[%emt 0:00:28]} Rd1+ {[%emt 0:00:00]} 97. Ke5 {[%emt 0:00:40]} Kh7 {[%emt 0:00:00]} 98. Rf7 {[%emt 0:01:25]} Re1+ {[%emt 0:00:00]} 99. Kf6 {[%emt 0:01:04]} Rf1+ {[%emt 0:00:00]} 100. Ke7 {[%emt 0:02:19]} Re1 {[%emt 0:00:00]} 101. Kf8 {[%emt 0:00:32]} 1-0

[Event "95th Caplin Hastings Congress"]
[Site "Hastings"]
[Date "2019.12.30"]
[Round "3.45"]
[White "Burrows, Nick"]
[Black "Bryant, Marc A"]
[Result "1-0"]
[ECO "D08"]
[WhiteElo "1952"]
[BlackElo "1823"]
[Annotator "NA"]
[PlyCount "49"]
[EventDate "2019.12.28"]
[EventType "swiss"]
[EventCountry "ENG"]
[SourceTitle "playchess.com"]
[Source "ChessBase"]
[SourceQuality "1"]
[TimeControl "40/6600+30:3000+30"]

1. d4 {[%emt 0:09:33]} d5 {[%emt 0:19:54]} 2. c4 {[%emt 0:00:18]} e5 {[%emt 0:01:02]} 3. dxe5 {[%emt 0:00:40]} d4 {[%emt 0:00:03]} 4. Nf3 {[%emt 0:00:24]} Nc6 {[%emt 0:00:03]} 5. Nbd2 {[%emt 0:00:47]} Bf5 {[%emt 0:04:46]} 6. a3 {[%emt 0:01:57]} Qe7 {[%emt 0:04:35]} 7. g3 {[%emt 0:30:17]} Nxe5 {[%emt 0:05:35]} 8. Nxe5 {[%emt 0:00:14]} Qxe5 {[%emt 0:00:25]} 9. Nf3 {[%emt 0:00:50]} Qa5+ {[%emt 0:02:33]} 10. Bd2 {[%emt 0:02:47]} Qb6 {[%emt 0:00:37]} 11. b4 {[%emt 0:03:27]} c5 {[%emt 0:00:22]} 12. Bg2 {[%emt 0:02:16]} g6 {[%emt 0:01:56]} 13. Nh4 {[%emt 0:05:34]} Be6 {[%emt 0:04:36]} 14. bxc5 {[%emt 0:01:13]} Qxc5 {[%emt 0:06:26]} 15. O-O {[%emt 0:04:04]} Rb8 {[%emt 0:01:38]} 16. Bb4 {[%emt 0:02:19]} Qxc4 {[%emt 0:06:23]} 17. Rc1 {[%emt 0:01:13]} Qa6 {[%emt 0:07:05]} 18. Qxd4 {[%emt 0:01:04]} Bxb4 {[%emt 0:00:29]} 19. Qxh8 {[%emt 0:01:12]} Bf8 {[%emt 0:09:08]} 20. Qxg8 {[%emt 0:00:22]} f6 {[%emt 0:12:12]} 21. Qxh7 {[%emt 0:00:28]} Bf7 {[%emt 0:01:48]} 22. Rc7 {[%emt 0:02:12]} Qe6 {[%emt 0:01:13]} 23. Rd1 {[%emt 0:01:29]} Bxa3 {[%emt 0:04:35]} 24. Rdd7 {[%emt 0:01:25]} Qf5 {[%emt 0:01:48]} 25. Qxf7# {[%emt 0:00:08]} 1-0

[Event "95th Caplin Hastings Congress"]
[Site "Hastings"]
[Date "2019.12.30"]
[Round "3.46"]
[White "Kearsley, Raymond J"]
[Black "Spanton, Tim R"]
[Result "0-1"]
[ECO "A30"]
[WhiteElo "1624"]
[BlackElo "1951"]
[Annotator "NA"]
[PlyCount "134"]
[EventDate "2019.12.28"]
[EventType "swiss"]
[EventCountry "ENG"]
[SourceTitle "playchess.com"]
[Source "ChessBase"]
[SourceQuality "1"]
[TimeControl "40/6600+30:3000+30"]

1. e4 {[%emt 0:13:37]} c5 {[%emt 0:09:33]} 2. Nf3 {[%emt 0:00:24]} g6 {[%emt 0:00:04]} 3. c4 {[%emt 0:01:48]} Bh6 {[%emt 0:00:05]} 4. Bd3 {[%emt 0:01:05]} Nc6 {[%emt 0:00:33]} 5. a3 {[%emt 0:00:24]} d6 {[%emt 0:00:42]} 6. O-O {[%emt 0:00:21]} Ne5 {[%emt 0:03:27]} 7. Nxe5 {[%emt 0:01:21]} dxe5 {[%emt 0:00:08]} 8. Be2 {[%emt 0:00:14]} Nf6 {[%emt 0:00:29]} 9. Nc3 {[%emt 0:00:28]} O-O {[%emt 0:01:11]} 10. Qc2 {[%emt 0:01:03]} b6 {[%emt 0:01:54]} 11. d3 {[%emt 0:00:24]} Bxc1 {[%emt 0:00:11]} 12. Raxc1 {[%emt 0:00:17]} Bb7 {[%emt 0:01:30]} 13. Qd2 {[%emt 0:04:30]} Kg7 {[%emt 0:02:26]} 14. Qe3 {[%emt 0:01:19]} e6 {[%emt 0:01:38]} 15. Kh1 {[%emt 0:01:05]} Qe7 {[%emt 0:01:49]} 16. f4 {[%emt 0:01:39]} exf4 {[%emt 0:00:19]} 17. Qxf4 {[%emt 0:00:30]} e5 {[%emt 0:00:28]} 18. Qg3 {[%emt 0:02:21]} Rad8 {[%emt 0:01:58]} 19. Rf2 {[%emt 0:02:07]} Ne8 {[%emt 0:00:30]} 20. Rcf1 {[%emt 0:03:46]} f6 {[%emt 0:00:21]} 21. Qh4 {[%emt 0:04:31]} Nc7 {[%emt 0:01:39]} 22. Rf3 {[%emt 0:04:40]} Ne6 {[%emt 0:01:24]} 23. g3 {[%emt 0:10:12]} Nd4 {[%emt 0:01:42]} 24. Re3 {[%emt 0:00:24]} g5 {[%emt 0:06:01]} 25. Qh3 {[%emt 0:01:25]} Nxe2 {[%emt 0:00:43]} 26. Nxe2 {[%emt 0:00:11]} Bc8 {[%emt 0:05:28]} 27. g4 {[%emt 0:04:00]} h5 {[%emt 0:01:26]} 28. Nc3 {[%emt 0:10:25]} Bxg4 {[%emt 0:00:34]} 29. Qg2 {[%emt 0:03:08]} Be6 {[%emt 0:00:39]} 30. Nd5 {[%emt 0:00:29]} Bxd5 {[%emt 0:00:32]} 31. cxd5 {[%emt 0:00:11]} Kg6 {[%emt 0:01:43]} 32. Ref3 {[%emt 0:07:33]} Rf7 {[%emt 0:00:27]} 33. Rf5 {[%emt 0:01:36]} Rdf8 {[%emt 0:00:21]} 34. R1f3 {[%emt 0:05:12]} b5 {[%emt 0:02:06]} 35. Qc2 {[%emt 0:03:57]} a5 {[%emt 0:01:01]} 36. Rh3 {[%emt 0:03:44]} Qc7 {[%emt 0:01:10]} 37. Qe2 {[%emt 0:00:39]} Rh8 {[%emt 0:00:26]} 38. Rhf3 {[%emt 0:01:09]} a4 {[%emt 0:01:01]} 39. Qf2 {[%emt 0:00:32]} Rhf8 {[%emt 0:00:58]} 40. Rh3 {[%emt 0:02:02]} b4 {[%emt 0:00:35]} 41. Qe2 {[%emt 0:50:29]} Rh8 {[%emt 0:50:20]} 42. Rhf3 {[%emt 0:01:22]} bxa3 {[%emt 0:10:38]} 43. bxa3 {[%emt 0:00:08]} Qb6 {[%emt 0:02:35]} 44. Qf2 {[%emt 0:02:35]} Rhf8 {[%emt 0:00:32]} 45. Rh3 {[%emt 0:00:59]} Rb8 {[%emt 0:00:45]} 46. Qe2 {[%emt 0:02:59]} Rh8 {[%emt 0:06:00]} 47. Rhf3 {[%emt 0:02:10]} Qb1+ {[%emt 0:00:34]} 48. Rf1 {[%emt 0:00:21]} Qb3 {[%emt 0:00:14]} 49. R5f3 {[%emt 0:08:13]} g4 {[%emt 0:04:10]} 50. Rg3 {[%emt 0:01:49]} f5 {[%emt 0:11:17]} 51. exf5+ {[%emt 0:03:34]} Rxf5 {[%emt 0:02:21]} 52. Qe4 {[%emt 0:00:13]} Rhf8 {[%emt 0:00:48]} 53. Rfg1 {[%emt 0:05:42]} Kf6 {[%emt 0:02:38]} 54. d4 {[%emt 0:00:55]} Qb2 {[%emt 0:01:59]} 55. dxc5 {[%emt 0:00:00]} Qd4 {[%emt 0:00:00]} 56. Qxd4 {[%emt 0:00:00]} exd4 {[%emt 0:00:00]} 57. Rd3 {[%emt 0:00:00]} Rxd5 {[%emt 0:00:00]} 58. c6 {[%emt 0:00:00]} Rc8 {[%emt 0:00:00]} 59. Rc1 {[%emt 0:00:00]} Ke5 {[%emt 0:00:00]} 60. Rc4 {[%emt 0:00:00]} Ke4 {[%emt 0:00:00]} 61. Rd1 {[%emt 0:00:00]} Ke3 {[%emt 0:00:00]} 62. c7 {[%emt 0:00:00]} Rd7 {[%emt 0:00:00]} 63. Rxa4 {[%emt 0:00:00]} Rcxc7 {[%emt 0:00:00]} 64. Rb4 {[%emt 0:00:00]} d3 {[%emt 0:00:00]} 65. Kg2 {[%emt 0:00:00]} Rc2+ {[%emt 0:00:00]} 66. Kg3 {[%emt 0:00:00]} d2 {[%emt 0:00:00]} 67. Rbb1 {[%emt 0:00:00]} Rdc7 {[%emt 0:00:00]} 0-1

[Event "95th Caplin Hastings Congress"]
[Site "Hastings"]
[Date "2019.12.30"]
[Round "3.47"]
[White "Ortiz Sanchez, Luis"]
[Black "Salmons, Calum"]
[Result "0-1"]
[ECO "B23"]
[WhiteElo "1947"]
[BlackElo "1796"]
[Annotator "NA"]
[PlyCount "110"]
[EventDate "2019.12.28"]
[EventType "swiss"]
[EventCountry "ENG"]
[SourceTitle "playchess.com"]
[Source "ChessBase"]
[SourceQuality "1"]
[TimeControl "40/6600+30:3000+30"]

1. e4 {[%emt 0:09:31]} c5 {[%emt 0:11:40]} 2. Nc3 {[%emt 0:00:22]} Nc6 {[%emt 0:00:15]} 3. Bb5 {[%emt 0:00:21]} Nd4 {[%emt 0:00:32]} 4. Nf3 {[%emt 0:01:33]} Nxb5 {[%emt 0:07:11]} 5. Nxb5 {[%emt 0:00:09]} d6 {[%emt 0:02:29]} 6. O-O {[%emt 0:03:52]} Nf6 {[%emt 0:02:10]} 7. Re1 {[%emt 0:04:00]} g6 {[%emt 0:01:34]} 8. d4 {[%emt 0:00:09]} Bd7 {[%emt 0:02:28]} 9. Nc3 {[%emt 0:02:27]} cxd4 {[%emt 0:05:58]} 10. Qxd4 {[%emt 0:01:58]} Bg7 {[%emt 0:03:05]} 11. Bg5 {[%emt 0:25:41]} O-O {[%emt 0:10:24]} 12. Rad1 {[%emt 0:03:42]} Bc6 {[%emt 0:13:29]} 13. Qb4 {[%emt 0:11:55]} Qc7 {[%emt 0:10:11]} 14. Rd2 {[%emt 0:11:14]} Rac8 {[%emt 0:09:47]} 15. Nd5 {[%emt 0:04:35]} Bxd5 {[%emt 0:00:31]} 16. exd5 {[%emt 0:00:06]} Rfe8 {[%emt 0:00:49]} 17. c3 {[%emt 0:02:30]} Qc4 {[%emt 0:09:09]} 18. Qxc4 {[%emt 0:09:13]} Rxc4 {[%emt 0:00:01]} 19. Bxf6 {[%emt 0:00:11]} Bxf6 {[%emt 0:00:24]} 20. Rd3 {[%emt 0:00:30]} b5 {[%emt 0:06:52]} 21. Nd2 {[%emt 0:01:00]} Ra4 {[%emt 0:01:46]} 22. Ne4 {[%emt 0:01:48]} Rc8 {[%emt 0:06:51]} 23. Nxf6+ {[%emt 0:02:17]} exf6 {[%emt 0:00:02]} 24. a3 {[%emt 0:00:16]} a5 {[%emt 0:00:34]} 25. g3 {[%emt 0:03:23]} Rac4 {[%emt 0:01:39]} 26. Ree3 {[%emt 0:01:06]} b4 {[%emt 0:01:11]} 27. axb4 {[%emt 0:01:37]} axb4 {[%emt 0:00:05]} 28. cxb4 {[%emt 0:00:22]} Rxb4 {[%emt 0:00:16]} 29. Rb3 {[%emt 0:00:13]} Rd4 {[%emt 0:04:22]} 30. Red3 {[%emt 0:00:47]} Rxd3 {[%emt 0:00:34]} 31. Rxd3 {[%emt 0:00:01]} Rc5 {[%emt 0:00:20]} 32. Kg2 {[%emt 0:00:54]} Rb5 {[%emt 0:00:13]} 33. b3 {[%emt 0:00:05]} f5 {[%emt 0:00:23]} 34. Kf3 {[%emt 0:00:24]} Kg7 {[%emt 0:00:55]} 35. Ke3 {[%emt 0:00:06]} Kf6 {[%emt 0:01:24]} 36. h4 {[%emt 0:00:37]} Rb4 {[%emt 0:02:21]} 37. f4 {[%emt 0:00:32]} h6 {[%emt 0:02:53]} 38. Kd2 {[%emt 0:00:01]} g5 {[%emt 0:01:13]} 39. Kc3 {[%emt 0:00:25]} Rb8 {[%emt 0:02:35]} 40. fxg5+ {[%emt 0:02:52]} hxg5 {[%emt 0:00:18]} 41. hxg5+ {[%emt 0:50:26]} Kxg5 {[%emt 0:02:13]} 42. Rd4 {[%emt 0:00:00]} Kf6 {[%emt 0:03:12]} 43. b4 {[%emt 0:00:00]} Ke5 {[%emt 0:01:56]} 44. Rd2 {[%emt 0:00:00]} Rc8+ {[%emt 0:02:47]} 45. Kb3 {[%emt 0:00:00]} Rg8 {[%emt 0:00:16]} 46. Rd3 {[%emt 0:00:00]} Ke4 {[%emt 0:00:36]} 47. Rd1 {[%emt 0:00:00]} Rxg3+ {[%emt 0:01:11]} 48. Kc4 {[%emt 0:00:00]} f4 {[%emt 0:03:15]} 49. Re1+ {[%emt 0:00:00]} Re3 {[%emt 0:02:37]} 50. Rf1 {[%emt 0:00:00]} f3 {[%emt 0:08:03]} 51. b5 {[%emt 0:00:00]} Re2 {[%emt 0:03:32]} 52. Kc3 {[%emt 0:00:00]} f2 {[%emt 0:02:02]} 53. b6 {[%emt 0:00:00]} Kf3 {[%emt 0:01:05]} 54. Rxf2+ {[%emt 0:00:00]} Kxf2 {[%emt 0:00:22]} 55. b7 {[%emt 0:00:00]} Re8 {[%emt 0:00:13]} 0-1

[Event "95th Caplin Hastings Congress"]
[Site "Hastings"]
[Date "2019.12.30"]
[Round "3.48"]
[White "Kumar, Sanjit S"]
[Black "Barton, R Alan"]
[Result "1/2-1/2"]
[ECO "A42"]
[WhiteElo "1501"]
[BlackElo "1945"]
[Annotator "NA"]
[PlyCount "100"]
[EventDate "2019.12.28"]
[EventType "swiss"]
[EventCountry "ENG"]
[SourceTitle "playchess.com"]
[Source "ChessBase"]
[SourceQuality "1"]
[TimeControl "40/6600+30:3000+30"]

1. e4 {[%emt 0:09:32]} g6 {[%emt 0:10:32]} 2. d4 {[%emt 0:00:23]} Bg7 {[%emt 0:00:27]} 3. c4 {[%emt 0:00:54]} d6 {[%emt 0:02:02]} 4. Nc3 {[%emt 0:00:12]} Nd7 {[%emt 0:00:48]} 5. Nf3 {[%emt 0:02:01]} e6 {[%emt 0:04:05]} 6. Bg5 {[%emt 0:03:28]} Ne7 {[%emt 0:00:08]} 7. Be2 {[%emt 0:02:59]} h6 {[%emt 0:01:10]} 8. Be3 {[%emt 0:00:31]} b6 {[%emt 0:02:21]} 9. Qd2 {[%emt 0:00:51]} Bb7 {[%emt 0:01:19]} 10. a3 {[%emt 0:04:26]} a6 {[%emt 0:01:28]} 11. b4 {[%emt 0:01:54]} Nf6 {[%emt 0:02:51]} 12. Bd3 {[%emt 0:06:37]} Ng4 {[%emt 0:01:16]} 13. Bf4 {[%emt 0:05:14]} e5 {[%emt 0:04:09]} 14. dxe5 {[%emt 0:03:02]} Nxe5 {[%emt 0:01:27]} 15. Be2 {[%emt 0:02:54]} N7c6 {[%emt 0:02:39]} 16. O-O {[%emt 0:05:03]} Nxf3+ {[%emt 0:04:15]} 17. Bxf3 {[%emt 0:02:11]} Nd4 {[%emt 0:00:44]} 18. Rad1 {[%emt 0:03:51]} Nxf3+ {[%emt 0:17:32]} 19. gxf3 {[%emt 0:00:09]} Qh4 {[%emt 0:00:49]} 20. Bg3 {[%emt 0:01:16]} Qf6 {[%emt 0:03:03]} 21. Nd5 {[%emt 0:01:56]} Bxd5 {[%emt 0:00:11]} 22. Qxd5 {[%emt 0:00:21]} O-O {[%emt 0:01:16]} 23. Kg2 {[%emt 0:06:34]} g5 {[%emt 0:03:42]} 24. Rfe1 {[%emt 0:05:09]} Rfd8 {[%emt 0:14:26]} 25. Qb7 {[%emt 0:04:17]} a5 {[%emt 0:05:43]} 26. b5 {[%emt 0:02:54]} Rac8 {[%emt 0:04:03]} 27. e5 {[%emt 0:05:06]} dxe5 {[%emt 0:05:59]} 28. Bxe5 {[%emt 0:01:19]} Qf5 {[%emt 0:01:43]} 29. Bxg7 {[%emt 0:04:25]} Rxd1 {[%emt 0:01:37]} 30. Rxd1 {[%emt 0:00:29]} Kxg7 {[%emt 0:00:03]} 31. Qd5 {[%emt 0:00:32]} Qxd5 {[%emt 0:02:10]} 32. Rxd5 {[%emt 0:00:08]} Kf6 {[%emt 0:03:08]} 33. f4 {[%emt 0:04:00]} Kg6 {[%emt 0:05:03]} 34. fxg5 {[%emt 0:00:14]} hxg5 {[%emt 0:00:08]} 35. c5 {[%emt 0:00:15]} f6 {[%emt 0:01:58]} 36. cxb6 {[%emt 0:01:34]} cxb6 {[%emt 0:00:03]} 37. Rd6 {[%emt 0:00:13]} Rc3 {[%emt 0:02:20]} 38. Rxb6 {[%emt 0:00:06]} Rxa3 {[%emt 0:00:06]} 39. Ra6 {[%emt 0:00:04]} a4 {[%emt 0:01:12]} 40. b6 {[%emt 0:01:26]} Rb3 {[%emt 0:00:26]} 41. Rxa4 {[%emt 0:50:05]} Rxb6 {[%emt 0:50:28]} 42. Ra5 {[%emt 0:00:18]} Rb3 {[%emt 0:02:36]} 43. Rc5 {[%emt 0:00:07]} f5 {[%emt 0:01:29]} 44. Rc6+ {[%emt 0:00:10]} Kh5 {[%emt 0:00:26]} 45. Rc4 {[%emt 0:00:08]} g4 {[%emt 0:01:22]} 46. Rf4 {[%emt 0:01:11]} Kg5 {[%emt 0:00:40]} 47. Ra4 {[%emt 0:00:05]} f4 {[%emt 0:04:59]} 48. Ra8 {[%emt 0:00:16]} Kh4 {[%emt 0:00:00]} 49. Rh8+ {[%emt 0:00:00]} Kg5 {[%emt 0:00:00]} 50. Rg8+ {[%emt 0:00:00]} Kh4 {[%emt 0:00:00]} 1/2-1/2

[Event "95th Caplin Hastings Congress"]
[Site "Hastings"]
[Date "2019.12.30"]
[Round "3.49"]
[White "Howell, Oliver W"]
[Black "Thatte, Nishchal"]
[Result "0-1"]
[ECO "D03"]
[WhiteElo "1928"]
[BlackElo "1723"]
[Annotator "NA"]
[PlyCount "76"]
[EventDate "2019.12.28"]
[EventType "swiss"]
[EventCountry "ENG"]
[SourceTitle "playchess.com"]
[Source "ChessBase"]
[SourceQuality "1"]
[TimeControl "40/6600+30:3000+30"]

1. d4 {[%emt 0:09:34]} Nf6 {[%emt 0:09:39]} 2. Nf3 {[%emt 0:00:04]} e6 {[%emt 0:00:05]} 3. Bg5 {[%emt 0:00:16]} d5 {[%emt 0:02:15]} 4. Nbd2 {[%emt 0:00:14]} b6 {[%emt 0:05:46]} 5. e3 {[%emt 0:00:51]} Be7 {[%emt 0:02:43]} 6. Bd3 {[%emt 0:00:35]} Bb7 {[%emt 0:01:09]} 7. O-O {[%emt 0:00:28]} Nbd7 {[%emt 0:02:18]} 8. Qe2 {[%emt 0:03:55]} h6 {[%emt 0:06:53]} 9. Bh4 {[%emt 0:01:04]} Ne4 {[%emt 0:01:05]} 10. Bxe7 {[%emt 0:01:41]} Qxe7 {[%emt 0:01:26]} 11. Ne5 {[%emt 0:07:07]} Nxe5 {[%emt 0:04:47]} 12. dxe5 {[%emt 0:00:08]} Nc5 {[%emt 0:00:26]} 13. f4 {[%emt 0:02:22]} Nxd3 {[%emt 0:03:08]} 14. Qxd3 {[%emt 0:00:53]} g6 {[%emt 0:09:24]} 15. c3 {[%emt 0:02:46]} c5 {[%emt 0:02:00]} 16. a4 {[%emt 0:00:58]} O-O {[%emt 0:04:58]} 17. a5 {[%emt 0:04:14]} Rfd8 {[%emt 0:02:24]} 18. Ra3 {[%emt 0:15:08]} Qd7 {[%emt 0:05:30]} 19. Rd1 {[%emt 0:09:55]} Bc6 {[%emt 0:04:06]} 20. Nf3 {[%emt 0:20:27]} Kg7 {[%emt 0:15:27]} 21. h3 {[%emt 0:18:42]} Rab8 {[%emt 0:05:56]} 22. Qe2 {[%emt 0:05:37]} Qe7 {[%emt 0:14:02]} 23. axb6 {[%emt 0:01:27]} Rxb6 {[%emt 0:00:48]} 24. Rda1 {[%emt 0:01:15]} Rb7 {[%emt 0:00:53]} 25. b4 {[%emt 0:01:49]} cxb4 {[%emt 0:03:05]} 26. cxb4 {[%emt 0:00:08]} Bb5 {[%emt 0:01:51]} 27. Qd2 {[%emt 0:00:43]} a6 {[%emt 0:00:26]} 28. Nd4 {[%emt 0:00:28]} Rdb8 {[%emt 0:00:35]} 29. Nb3 {[%emt 0:01:24]} Bc4 {[%emt 0:00:43]} 30. Na5 {[%emt 0:02:20]} Qxb4 {[%emt 0:00:13]} 31. Nxc4 {[%emt 0:04:13]} dxc4 {[%emt 0:01:11]} 32. Qxb4 {[%emt 0:01:02]} Rxb4 {[%emt 0:00:01]} 33. Rxa6 {[%emt 0:00:21]} Rc8 {[%emt 0:00:52]} 34. Rc1 {[%emt 0:01:36]} c3 {[%emt 0:01:50]} 35. Ra2 {[%emt 0:03:09]} Rb2 {[%emt 0:00:00]} 36. Rxb2 {[%emt 0:00:33]} cxb2 {[%emt 0:00:00]} 37. Rxc8 {[%emt 0:00:18]} b1=Q+ {[%emt 0:00:00]} 38. Kf2 {[%emt 0:00:13]} Qb2+ {[%emt 0:00:00]} 0-1

[Event "95th Caplin Hastings Congress"]
[Site "Hastings"]
[Date "2019.12.30"]
[Round "3.50"]
[White "Kumar, Soham"]
[Black "Garnett, John S"]
[Result "0-1"]
[ECO "B01"]
[WhiteElo "1512"]
[BlackElo "1865"]
[Annotator "NA"]
[PlyCount "62"]
[EventDate "2019.12.28"]
[EventType "swiss"]
[EventCountry "ENG"]
[SourceTitle "playchess.com"]
[Source "ChessBase"]
[SourceQuality "1"]
[TimeControl "40/6600+30:3000+30"]

1. e4 {[%emt 0:09:32]} d5 {[%emt 0:09:37]} 2. exd5 {[%emt 0:00:08]} Nf6 {[%emt 0:00:05]} 3. d4 {[%emt 0:00:14]} Bg4 {[%emt 0:00:24]} 4. Be2 {[%emt 0:00:09]} Bxe2 {[%emt 0:00:13]} 5. Nxe2 {[%emt 0:00:10]} Qxd5 {[%emt 0:00:24]} 6. O-O {[%emt 0:00:10]} Nc6 {[%emt 0:01:13]} 7. Nbc3 {[%emt 0:00:34]} Qh5 {[%emt 0:01:11]} 8. Bf4 {[%emt 0:02:12]} O-O-O {[%emt 0:02:45]} 9. Qc1 {[%emt 0:10:15]} Nxd4 {[%emt 0:03:57]} 10. Nxd4 {[%emt 0:00:12]} Rxd4 {[%emt 0:00:21]} 11. Qe3 {[%emt 0:00:21]} c5 {[%emt 0:06:10]} 12. Nb5 {[%emt 0:06:04]} Nd5 {[%emt 0:04:24]} 13. Qa3 {[%emt 0:09:46]} Nxf4 {[%emt 0:02:01]} 14. Nxd4 {[%emt 0:00:19]} cxd4 {[%emt 0:00:42]} 15. Qxa7 {[%emt 0:09:44]} e6 {[%emt 0:02:01]} 16. Qb6 {[%emt 0:08:12]} Bc5 {[%emt 0:02:24]} 17. Qa5 {[%emt 0:02:20]} Rd8 {[%emt 0:03:20]} 18. Qa8+ {[%emt 0:01:27]} Kc7 {[%emt 0:00:49]} 19. Qa5+ {[%emt 0:00:08]} b6 {[%emt 0:01:18]} 20. Qa7+ {[%emt 0:01:44]} Kc6 {[%emt 0:00:43]} 21. Qa4+ {[%emt 0:03:58]} Kb7 {[%emt 0:00:13]} 22. b4 {[%emt 0:03:32]} Rd5 {[%emt 0:05:23]} 23. Qb3 {[%emt 0:01:58]} d3 {[%emt 0:10:22]} 24. g3 {[%emt 0:07:15]} Bxf2+ {[%emt 0:03:23]} 25. Rxf2 {[%emt 0:00:31]} Nh3+ {[%emt 0:00:12]} 26. Kf1 {[%emt 0:01:55]} Nxf2 {[%emt 0:00:13]} 27. Kxf2 {[%emt 0:00:06]} Qe2+ {[%emt 0:01:38]} 28. Kg1 {[%emt 0:00:09]} d2 {[%emt 0:00:54]} 29. c4 {[%emt 0:00:41]} d1=Q+ {[%emt 0:00:11]} 30. Rxd1 {[%emt 0:00:15]} Rxd1+ {[%emt 0:00:06]} 31. Qxd1 {[%emt 0:00:07]} Qxd1+ {[%emt 0:00:05]} 0-1